bitfinex/quotes_SOLUSD_20250621
["timestamp","ask_amount","ask_price","bid_price","bid_amount"]
[1750473510360,19.38964886,140.14,140.13,0.73]
[1750473510549,48.22964886,140.14,140.13,0.73]
[1750473511566,53.53555162,140.14,140.13,0.73]
[1750473512467,59.81284691,140.14,140.13,0.73]
[1750473512844,66.94856833,140.14,140.13,0.73]
[1750473514371,61.64266557,140.14,140.13,0.73]
[1750473514744,69.60595836,140.14,140.13,0.73]
[1750473515345,61.64266557,140.14,140.13,0.73]
[1750473517764,135.90471754,140.14,140.13,0.73]
[1750473518164,100.78742225,140.14,140.13,0.73]
[1750473518362,92.95471754,140.14,140.13,0.73]
[1750473518946,57.83742225,140.14,140.13,0.73]
[1750473519148,86.67742225,140.14,140.13,0.73]
[1750473526366,89.34077695,140.14,140.13,0.73]
[1750473528057,95.61807224,140.14,140.13,0.73]
[1750473528786,90.30602027,140.14,140.13,0.73]
[1750473528968,95.63415879,140.14,140.13,0.73]
[1750473530166,95.59415879,140.14,140.13,0.73]
[1750473530773,95.59506804,140.14,140.13,0.73]
[1750473532269,100.90480888,140.14,140.13,0.73]
[1750473532769,143.78480888,140.14,140.13,0.73]
[1750473533865,143.8025159,140.14,140.13,0.73]
[1750473534080,150.46268905,140.14,140.13,0.73]
[1750473534615,143.8025159,140.14,140.13,0.73]
[1750473534774,150.46268905,140.14,140.13,0.73]
[1750473535490,143.8025159,140.14,140.13,0.73]
[1750473535991,159.8025159,140.14,140.13,0.73]
[1750473536166,0.7,140.13,140.07,6.27729529]
[1750473536491,19.34964886,140.1,140.07,6.96729529]
[1750473536791,34.16785714,140.09,140.07,6.96729529]
[1750473536991,5.32785714,140.08,140.07,6.96729529]
[1750473539466,5.3242495,140.08,140.07,6.96729529]
[1750473539685,5.3242495,140.08,140.06,7.13931558]
[1750473539686,18.64964886,140.07,140.06,7.13931558]
[1750473539889,47.48964886,140.07,140.06,14.10661087]
[1750473544398,47.48964886,140.07,140.06,7.82931558]
[1750473544699,47.48964886,140.07,140.06,14.10661087]
[1750473547679,47.48964886,140.08,140.07,0.69]
[1750473547881,47.48964886,140.08,140.07,6.96729529]
[1750473548777,47.48964886,140.08,140.07,14.10658278]
[1750473549488,47.48964886,140.08,140.07,7.82928749]
[1750473549693,47.48964886,140.08,140.07,14.10658278]
[1750473558018,18.64964886,140.08,140.07,14.10658278]
[1750473563726,18.64964886,140.08,140.07,39.21576394]
[1750473565308,18.64964886,140.08,140.07,14.10658278]
[1750473566012,28.84,140.1,140.07,38.52576394]
[1750473566314,18.64964886,140.09,140.08,0.69]
[1750473567489,18.64964886,140.09,140.08,6.96729529]
[1750473568187,47.48964886,140.1,140.08,14.10607313]
[1750473568387,47.48964886,140.1,140.09,6.27729529]
[1750473568598,52.81634535,140.1,140.09,6.27729529]
[1750473569191,52.81634535,140.1,140.09,13.41556354]
[1750473570306,53.5263206,140.1,140.09,13.41556354]
[1750473570812,53.52637696,140.1,140.09,13.41556354]
[1750473572823,53.53637696,140.1,140.09,13.41556354]
[1750473573625,0.72,140.09,140.03,184.3966]
[1750473573798,18.64964886,140.05,140.03,32.08]
[1750473574007,18.64964886,140.05,140.04,6.27729529]
[1750473574008,48.20964886,140.05,140.04,6.27729529]
[1750473574318,48.20964886,140.05,140.02,7.14183688]
[1750473574319,52.81463632,140.05,140.02,7.14183688]
[1750473574637,48.20964886,140.05,140.04,6.27729529]
[1750473574835,53.53456636,140.05,140.04,6.27729529]
[1750473579118,0.72,140.04,140.01,33.14220306]
[1750473579316,52.81456636,140.05,140.03,6.27729529]
[1750473579317,18.64964886,140.05,140.03,6.27729529]
[1750473579519,53.52763731,140.04,140.03,6.27729529]
[1750473580234,18.64964886,140.03,140.02,6.27729529]
[1750473580420,19.36964886,140.03,140.02,6.27729529]
[1750473580930,24.68147273,140.03,140.01,6.27729529]
[1750473581140,48.20964886,140.02,140.01,6.27729529]
[1750473582729,19.36964886,140.01,140.0,6.27729529]
[1750473584215,19.36964886,140.0,139.99,6.27729529]
[1750473584415,48.20964886,140.0,139.99,6.27729529]
[1750473585631,48.20964886,140.0,139.98,7.14373852]
[1750473585632,18.64964886,139.99,139.98,7.14373852]
[1750473585822,18.64964886,139.99,139.98,13.42103381]
[1750473588733,19.36964886,139.99,139.98,13.42103381]
[1750473589448,18.64964886,139.99,139.98,13.42103381]
[1750473589938,19.36964886,139.99,139.98,13.42103381]
[1750473591042,18.64964886,139.99,139.98,13.42103381]
[1750473591423,18.64964886,139.99,139.97,7.14438808]
[1750473591744,18.64964886,139.99,139.98,6.27729529]
[1750473592246,19.36964886,139.99,139.98,6.27729529]
[1750473593223,18.64964886,139.97,139.96,7.14471258]
[1750473593420,18.64964886,139.97,139.96,13.42200787]
[1750473593732,19.36964886,139.97,139.96,13.42200787]
[1750473594734,19.36964886,139.97,139.91,17.86751724]
[1750473594735,18.64964886,139.97,139.91,17.86751724]
[1750473595047,28.84,139.96,139.94,0.75]
[1750473595225,18.64964886,139.96,139.94,0.75]
[1750473595637,18.64964886,139.96,139.95,7.14540907]
[1750473596055,18.64964886,139.96,139.95,13.42270436]
[1750473597364,18.64964886,139.97,139.96,0.75]
[1750473597520,18.64964886,139.97,139.96,6.27729529]
[1750473597720,28.96,140.0,139.96,6.27729529]
[1750473597721,19.36964886,139.98,139.96,6.27729529]
[1750473597923,19.36964886,139.98,139.97,6.27729529]
[1750473598135,19.36964886,139.98,139.95,7.14540907]
[1750473598347,18.64964886,139.97,139.96,6.27729529]
[1750473598655,19.36964886,139.97,139.96,6.27729529]
[1750473599330,18.64964886,139.97,139.96,13.42219383]
[1750473602948,18.64964886,139.97,139.96,14.13219383]
[1750473604759,18.64964886,139.97,139.96,13.42219383]
[1750473613044,18.64964886,139.97,139.96,7.14489854]
[1750473613259,18.64964886,139.97,139.96,13.42219383]
[1750473613567,19.32964886,139.97,139.96,13.42219383]
[1750473617672,19.32964886,139.97,139.96,6.27729529]
[1750473617872,18.64964886,140.0,139.96,6.27729529]
[1750473618081,18.64964886,139.98,139.96,26.71]
[1750473619159,18.64964886,139.98,139.97,6.27729529]
[1750473619754,18.64964886,139.98,139.97,13.42168337]
[1750473620274,28.92,139.99,139.97,13.42168337]
[1750473620565,47.56964886,139.99,139.98,6.27729529]
[1750473621674,47.56964886,139.99,139.98,13.42117298]
[1750473621858,48.24964886,139.99,139.98,13.42117298]
[1750473622568,53.57169717,139.99,139.98,13.42117298]
[1750473622875,24.65169717,139.99,139.98,13.42117298]
[1750473625080,24.65484365,139.99,139.98,13.42117298]
[1750473632887,19.32964886,139.98,139.97,7.14423235]
[1750473633093,24.65484365,139.98,139.97,7.14423235]
[1750473633652,19.32964886,139.98,139.97,7.14423235]
[1750473633972,19.32964886,139.98,139.97,13.42152764]
[1750473634374,24.65728767,139.98,139.97,13.42152764]
[1750473638786,23.97728767,139.98,139.97,13.42152764]
[1750473639573,24.65750374,139.98,139.97,13.42152764]
[1750473641486,23.97750374,139.98,139.97,13.42152764]
[1750473641668,18.64964886,139.98,139.97,13.42152764]
[1750473642286,23.97652192,139.98,139.97,13.42152764]
[1750473642475,23.97715981,139.98,139.97,13.42152764]
[1750473643160,18.64964886,139.98,139.97,13.42152764]
[1750473644274,18.64964886,140.0,139.97,14.13152764]
[1750473644583,18.64964886,139.98,139.97,7.85423235]
[1750473644785,18.64964886,139.99,139.97,14.13152764]
[1750473645390,18.64964886,139.99,139.98,6.27729529]
[1750473645575,23.97850216,139.99,139.98,13.42117298]
[1750473647466,18.64964886,140.0,139.98,13.42117298]
[1750473647794,18.64964886,140.0,139.99,6.27729529]
[1750473647978,23.97819288,140.0,139.99,6.27729529]
[1750473649100,24.65819288,140.0,139.99,6.27729529]
[1750473649499,24.65819288,140.0,139.99,13.42066267]
[1750473654398,24.65324399,140.0,139.99,13.42066267]
[1750473654782,24.65326975,140.0,139.99,13.42066267]
[1750473657203,19.32964886,140.0,139.99,13.42066267]
[1750473657403,24.65630921,140.0,139.99,13.42066267]
[1750473663601,0.75,139.99,139.97,7.14438808]
[1750473664677,0.75,139.99,139.98,13.42117298]
[1750473664879,24.72616329,139.99,139.98,13.42117298]
[1750473668597,24.72459369,139.99,139.98,13.42117298]
[1750473669206,23.97459369,139.99,139.98,13.42117298]
[1750473670399,18.64964886,139.99,139.98,14.12117298]
[1750473675609,18.64964886,139.99,139.98,13.42117298]
[1750473679793,18.64964886,139.99,139.98,14.12117298]
[1750473680897,18.64964886,139.99,139.98,13.42117298]
[1750473689129,1.5842,140.05,139.98,31.28086722]
[1750473689297,18.64964886,140.03,140.0,25.10918116]
[1750473689495,18.64964886,140.03,140.02,6.27729529]
[1750473689822,6.08167634,140.03,140.02,6.27729529]
[1750473690317,6.08199528,140.03,140.02,6.27729529]
[1750473690524,6.08199528,140.03,140.02,13.41913217]
[1750473691617,0.75,140.03,140.02,13.41913217]
[1750473691924,6.07715328,140.03,140.02,13.41913217]
[1750473693612,0.75,140.03,140.02,13.41913217]
[1750473696098,18.64964886,140.04,140.02,13.41913217]
[1750473696300,18.64964886,140.04,140.03,6.27729529]
[1750473696602,24.69372634,140.04,140.03,6.27729529]
[1750473697394,24.69372634,140.04,140.03,13.41862214]
[1750473698126,19.36964886,140.04,140.03,13.41862214]
[1750473698322,19.36964886,140.04,140.03,7.14132685]
[1750473698500,19.36964886,140.04,140.03,13.41862214]
[1750473699021,24.69199172,140.04,140.03,13.41862214]
[1750473699751,19.36964886,140.04,140.03,13.41862214]
[1750473702330,18.64964886,140.04,140.03,13.41862214]
[1750473703035,18.64964886,140.05,140.03,13.41862214]
[1750473703236,18.64964886,140.05,140.04,6.27729529]
[1750473703541,19.36964886,140.05,140.04,6.27729529]
[1750473703706,19.36964886,140.05,140.04,13.41811219]
[1750473706028,14.39194153,140.06,140.04,14.09811219]
[1750473706336,18.64964886,140.06,140.05,6.27729529]
[1750473707250,18.64964886,140.06,140.05,13.41760232]
[1750473708306,0.72,140.1,140.05,31.9483699]
[1750473708510,48.20964886,140.1,140.09,6.27729529]
[1750473708733,53.52631094,140.1,140.09,6.27729529]
[1750473709247,53.52631094,140.1,140.09,13.41556354]
[1750473709534,24.68631094,140.1,140.09,13.41556354]
[1750473711910,19.36964886,140.1,140.09,13.41556354]
[1750473712435,2.3671,140.15,140.09,13.41556354]
[1750473712738,2.3671,140.15,140.14,6.27729529]
[1750473713045,24.68163982,140.15,140.14,6.27729529]
[1750473713835,24.68163982,140.15,140.14,13.41301671]
[1750473714037,19.36964886,140.12,140.11,7.1372493]
[1750473714205,19.36964886,140.12,140.11,13.41454459]
[1750473715520,0.72,140.12,140.11,13.41454459]
[1750473720322,0.72,140.12,140.11,6.27729529]
[1750473721034,18.64964886,140.11,140.05,164.05058117]
[1750473721238,18.64964886,140.09,140.08,6.27729529]
[1750473721433,19.36964886,140.09,140.08,6.27729529]
[1750473722851,18.64964886,140.09,140.08,9.81403713]
[1750473723050,19.32964886,140.09,140.08,9.81403713]
[1750473724449,19.32964886,140.09,140.08,7.13877784]
[1750473724760,19.32964886,140.09,140.08,16.95281497]
[1750473725456,19.32964886,140.09,140.05,24.9908882]
[1750473725752,0.68,140.08,140.05,24.9908882]
[1750473725928,18.64964886,140.07,140.05,24.9908882]
[1750473726328,18.64964886,140.07,140.05,25.7208882]
[1750473727047,18.64964886,140.07,140.06,9.81403713]
[1750473727255,18.64964886,140.07,140.06,16.95383435]
[1750473729453,0.68,140.07,140.06,16.95383435]
[1750473731424,18.64964886,140.1,140.06,16.95383435]
[1750473731627,28.82,140.11,140.09,9.81403713]
[1750473731845,18.64964886,140.1,140.09,9.81403713]
[1750473732255,19.32964886,140.1,140.09,9.81403713]
[1750473733845,18.64964886,140.1,140.09,9.81403713]
[1750473735332,19.32964886,140.1,140.09,9.81403713]
[1750473735534,19.32964886,140.1,140.09,16.95230538]
[1750473741343,18.64964886,140.1,140.09,16.95230538]
[1750473742838,18.64964886,140.13,140.1,0.73]
[1750473743159,19.32964886,140.13,140.12,9.81403713]
[1750473743532,19.32964886,140.13,140.12,16.95077706]
[1750473744835,19.32964886,140.13,140.12,6.27684923]
[1750473748264,19.32964886,140.13,140.12,13.41358916]
[1750473749967,19.32964886,140.13,140.12,6.27684923]
[1750473750172,19.32964886,140.13,140.12,13.41358916]
[1750473751369,19.32964886,140.13,140.12,6.27684923]
[1750473751953,24.64914894,140.13,140.12,6.27684923]
[1750473752851,19.32964886,140.13,140.12,6.27684923]
[1750473755772,48.14964886,140.13,140.12,13.41358916]
[1750473757456,47.46964886,140.13,140.12,13.41358916]
[1750473757988,18.64964886,140.13,140.12,13.41358916]
[1750473759363,28.82,140.14,140.12,13.41358916]
[1750473759554,18.64964886,140.13,140.12,7.13673993]
[1750473759750,18.64964886,140.13,140.12,13.41358916]
[1750473767876,18.64964886,140.14,140.12,13.41358916]
[1750473768068,18.64964886,140.14,140.13,13.41307987]
[1750473771574,19.36964886,140.14,140.13,13.41307987]
[1750473773667,19.36964886,140.13,140.12,7.13661291]
[1750473773973,19.36964886,140.13,140.12,13.41346214]
[1750473774187,18.64964886,140.13,140.12,13.41346214]
[1750473774842,18.64964886,140.14,140.12,13.41346214]
[1750473774989,18.64964886,140.14,140.13,6.27684923]
[1750473775294,23.98122877,140.14,140.13,6.27684923]
[1750473775988,23.98122877,140.14,140.13,13.41307987]
[1750473777179,23.98571052,140.14,140.13,13.41307987]
[1750473777894,18.64964886,140.14,140.13,13.41307987]
[1750473778693,18.64964886,140.14,140.13,14.11307987]
[1750473778874,47.44964886,140.16,140.13,14.11307987]
[1750473779081,18.64964886,140.14,140.13,7.83623064]
[1750473779288,18.64964886,140.14,140.13,14.11307987]
[1750473780889,18.05657158,140.17,140.13,38.52047679]
[1750473781069,18.64964886,140.16,140.15,0.7]
[1750473781268,18.64964886,140.16,140.15,6.97684923]
[1750473781493,18.64964886,140.17,140.15,6.97684923]
[1750473781666,18.64964886,140.17,140.16,6.27684923]
[1750473781867,23.98732137,140.17,140.16,6.27684923]
[1750473783085,23.98732137,140.17,140.16,13.41155242]
[1750473783589,18.64964886,140.17,140.16,13.41155242]
[1750473783786,28.8,140.18,140.16,13.41155242]
[1750473783787,18.64964886,140.18,140.16,13.41155242]
[1750473784112,18.64964886,140.18,140.16,7.86470319]
[1750473784113,5.33825515,140.17,140.16,7.86470319]
[1750473784395,18.64964886,140.19,140.16,25.70146118]
[1750473784616,5.33808004,140.18,140.16,25.70146118]
[1750473784778,19.34964886,140.19,140.16,25.70146118]
[1750473784976,5.33808413,140.18,140.16,25.70146118]
[1750473785167,0.7,140.18,140.17,13.41104342]
[1750473785374,6.03814103,140.18,140.17,13.41104342]
[1750473786994,0.7,140.18,140.17,13.41104342]
[1750473787377,19.34964886,140.19,140.17,13.41104342]
[1750473787574,19.34964886,140.19,140.18,6.27684923]
[1750473788276,19.34964886,140.19,140.18,13.41053449]
[1750473788898,18.64964886,140.19,140.18,13.41053449]
[1750473791704,19.34964886,140.21,140.18,13.41053449]
[1750473791880,48.14964886,140.21,140.2,6.27684923]
[1750473792079,53.47715902,140.21,140.2,6.27684923]
[1750473792275,53.47685502,140.21,140.2,6.27684923]
[1750473793208,53.47423535,140.21,140.2,6.27684923]
[1750473793901,53.47423334,140.21,140.2,6.27684923]
[1750473795405,48.14964886,140.21,140.2,6.27684923]
[1750473796208,53.47245202,140.21,140.2,6.27684923]
[1750473796680,53.47253874,140.21,140.2,6.27684923]
[1750473797587,48.14964886,140.21,140.2,6.27684923]
[1750473798208,53.47179327,140.21,140.2,6.27684923]
[1750473798903,48.14964886,140.21,140.2,6.27684923]
[1750473801206,53.47127812,140.21,140.2,6.27684923]
[1750473802510,53.47166616,140.21,140.2,6.27684923]
[1750473803705,19.34964886,140.2,140.19,6.27684923]
[1750473804834,24.67234709,140.2,140.19,6.27684923]
[1750473805708,19.34964886,140.2,140.19,6.27684923]
[1750473806310,24.67264375,140.2,140.19,6.27684923]
[1750473806494,19.34964886,140.2,140.19,6.27684923]
[1750473807404,24.67263215,140.2,140.19,6.27684923]
[1750473808393,18.64964886,140.19,140.18,7.13350881]
[1750473808587,0.7,140.18,140.15,7.13521227]
[1750473808789,19.34964886,140.18,140.17,6.27684923]
[1750473810008,19.34964886,140.18,140.17,13.41104342]
[1750473814120,18.64964886,140.18,140.17,13.41104342]
[1750473819014,18.64964886,140.18,140.17,14.11104342]
[1750473820196,18.64964886,140.18,140.16,0.7]
[1750473820399,18.64964886,140.18,140.17,6.27684923]
[1750473821642,18.64964886,140.18,140.17,13.41104342]
[1750473828846,18.64964886,140.18,140.17,14.11104342]
[1750473829515,23.99430142,140.18,140.17,14.11104342]
[1750473829727,18.64964886,140.18,140.17,14.11104342]
[1750473831540,18.64964886,140.2,140.18,0.7]
[1750473831739,18.64964886,140.2,140.19,6.27684923]
[1750473831943,23.99390688,140.2,140.19,6.27684923]
[1750473832141,29.33858718,140.2,140.19,6.27684923]
[1750473832730,30.05858718,140.2,140.19,13.41002563]
[1750473832928,24.71390688,140.2,140.19,13.41002563]
[1750473833847,24.71306278,140.2,140.19,13.41002563]
[1750473834833,24.71306278,140.2,140.19,6.27684923]
[1750473835033,27.38504438,140.2,140.19,6.27684923]
[1750473836338,32.72908301,140.2,140.19,6.27684923]
[1750473836723,32.00908301,140.2,140.18,6.27684923]
[1750473836919,53.49306278,140.19,140.17,7.13391245]
[1750473837144,24.71306278,140.18,140.17,7.13391245]
[1750473837352,24.71306278,140.18,140.17,13.41076168]
[1750473839959,24.71306278,140.18,140.14,6.04]
[1750473840140,19.36964886,140.15,140.14,6.27684923]
[1750473840538,24.71514011,140.15,140.14,6.27684923]
[1750473841046,52.77514011,140.15,140.14,6.27684923]
[1750473841231,53.49514011,140.15,140.14,6.27684923]
[1750473841436,56.16827769,140.15,140.14,6.27684923]
[1750473841637,53.49514011,140.15,140.14,6.27684923]
[1750473841840,52.77514011,140.15,140.14,6.27684923]
[1750473842039,23.99514011,140.15,140.14,6.27684923]
[1750473842229,18.64964886,140.15,140.14,6.27684923]
[1750473843047,18.64964886,140.15,140.14,13.41257065]
[1750473845834,18.64964886,140.16,140.14,39.21996757]
[1750473846035,18.64964886,140.16,140.15,6.27684923]
[1750473846642,18.64964886,140.16,140.15,13.4120615]
[1750473851156,19.36964886,140.16,140.15,13.4120615]
[1750473852153,19.36964886,140.15,140.14,7.13561132]
[1750473852454,19.36964886,140.15,140.14,6.27684923]
[1750473852455,53.48840902,140.15,140.14,6.27684923]
[1750473853258,53.48854348,140.15,140.14,6.27684923]
[1750473856860,19.36964886,140.14,140.11,7.1372493]
[1750473857041,19.36964886,140.14,140.11,7.8372493]
[1750473858069,19.36964886,140.12,140.11,7.1372493]
[1750473858364,19.36964886,140.12,140.11,13.41409853]
[1750473869381,18.64964886,140.12,140.11,13.41409853]
[1750473869544,18.64964886,140.12,140.11,14.11409853]
[1750473870182,18.64964886,140.12,140.11,13.41409853]
[1750473876177,18.64964886,140.12,140.11,7.1372493]
[1750473876482,18.64964886,140.12,140.11,13.41409853]
[1750473879768,18.64964886,140.14,140.11,31.25722179]
[1750473879969,18.64964886,140.14,140.13,6.27684923]
[1750473881174,18.64964886,140.14,140.13,13.41307987]
[1750473882469,19.35964886,140.14,140.13,13.41307987]
[1750473892168,24.68635449,140.14,140.13,13.41307987]
[1750473892976,19.35964886,140.14,140.13,13.41307987]
[1750473893292,24.68744975,140.14,140.13,13.41307987]
[1750473896880,24.68939253,140.14,140.13,13.41307987]
[1750473898789,24.69150071,140.14,140.13,13.41307987]
[1750473902901,18.64964886,140.12,140.11,7.1372493]
[1750473903082,24.66614127,140.12,140.08,7.13877784]
[1750473903398,0.69,140.11,140.1,6.27684923]
[1750473903583,24.66603364,140.11,140.1,6.27684923]
[1750473903766,24.66603364,140.11,140.08,7.13877784]
[1750473903767,0.69,140.1,140.08,7.13877784]
[1750473903974,6.01573407,140.09,140.08,6.27684923]
[1750473904174,6.01582257,140.09,140.08,6.27684923]
[1750473904691,29.47,140.09,140.08,6.27684923]
[1750473905104,34.7933598,140.09,140.08,6.27684923]
[1750473906693,29.47,140.09,140.08,6.27684923]
[1750473908297,29.47,140.09,140.08,13.41562707]
[1750473909606,2.3021,140.13,140.08,14.15562707]
[1750473909818,24.65804696,140.12,140.11,6.27684923]
[1750473910299,24.65805236,140.12,140.11,6.27684923]
[1750473913013,24.65349877,140.12,140.11,6.27684923]
[1750473913513,19.33964886,140.11,140.1,7.13752011]
[1750473913691,24.65349877,140.11,140.1,13.41436934]
[1750473913890,53.43349877,140.11,140.1,13.41436934]
[1750473915110,53.43349877,140.11,140.07,24.98743006]
[1750473915316,19.33964886,140.1,140.07,50.09482698]
[1750473915514,19.33964886,140.1,140.07,24.98743006]
[1750473915689,18.64964886,140.1,140.07,7.13928749]
[1750473916017,0.69,140.09,140.07,7.13928749]
[1750473916520,19.33964886,140.1,140.08,6.27684923]
[1750473916703,19.33964886,140.1,140.09,6.27684923]
[1750473916900,18.64964886,140.1,140.09,6.27684923]
[1750473917121,0.69,140.14,140.09,6.27684923]
[1750473917307,28.82,140.14,140.13,6.27684923]
[1750473917498,34.12924001,140.14,140.13,6.27684923]
[1750473917821,0.69,140.14,140.13,6.27684923]
[1750473917993,5.99858636,140.14,140.13,6.27684923]
[1750473918194,0.69,140.14,140.13,6.27684923]
[1750473918915,0.69,140.14,140.13,9.80678619]
[1750473920615,0.69,140.14,140.13,16.94301683]
[1750473921320,47.48964886,140.15,140.13,16.94301683]
[1750473921520,48.17964886,140.15,140.13,16.94301683]
[1750473921721,48.17964886,140.15,140.14,9.80678619]
[1750473921906,53.48720985,140.15,140.14,9.80678619]
[1750473922429,53.48732366,140.15,140.14,9.80678619]
[1750473923422,34.8376748,140.15,140.14,9.80678619]
[1750473923726,53.48732366,140.15,140.14,9.80678619]
[1750473925526,53.48627656,140.15,140.14,9.80678619]
[1750473925709,24.64627656,140.15,140.14,9.80678619]
[1750473926030,53.46627656,140.15,140.14,9.80678619]
[1750473927097,34.8166277,140.15,140.14,9.80678619]
[1750473929332,53.46627656,140.15,140.14,9.80678619]
[1750473930128,48.15964886,140.15,140.14,9.80678619]
[1750473930433,53.46891768,140.15,140.14,9.80678619]
[1750473933040,53.46925884,140.15,140.14,9.80678619]
[1750473934342,53.46925884,140.15,140.14,16.94250761]
[1750473934639,53.46925884,140.15,140.14,9.80678619]
[1750473935249,52.77925884,140.15,140.14,9.80678619]
[1750473935412,53.45925884,140.15,140.14,9.80678619]
[1750473936938,53.45925884,140.15,140.13,16.94280074]
[1750473937239,0.68,140.14,140.13,16.94280074]
[1750473940842,0.68,140.14,140.13,6.27627378]
[1750473941840,5.98439838,140.14,140.13,6.27627378]
[1750473943140,18.64964886,140.13,140.12,13.41301371]
[1750473943320,19.32964886,140.13,140.12,13.41301371]
[1750473945149,24.63412186,140.13,140.12,13.41301371]
[1750473947355,24.63286208,140.13,140.12,13.41301371]
[1750473948026,23.95286208,140.13,140.12,13.41301371]
[1750473948954,18.64964886,140.13,140.12,13.41301371]
[1750473949450,23.95266915,140.13,140.12,13.41301371]
[1750473951158,23.95266915,140.13,140.12,7.13673993]
[1750473951452,23.95266915,140.13,140.12,13.41301371]
[1750473954453,24.63266915,140.13,140.12,13.41301371]
[1750473954761,24.63266915,140.13,140.12,6.27627378]
[1750473954998,23.95266915,140.13,140.11,13.4133087]
[1750473955131,19.32964886,140.12,140.11,13.4133087]
[1750473955332,24.63969472,140.12,140.11,13.4133087]
[1750473955766,53.41969472,140.12,140.11,13.4133087]
[1750473955970,53.41969472,140.12,140.11,6.27627378]
[1750473956739,53.41969472,140.12,140.11,13.41352308]
[1750473957744,24.63969472,140.12,140.11,13.41352308]
[1750473959569,23.95969472,140.12,140.11,13.41352308]
[1750473960769,24.6527595,140.12,140.11,13.41352308]
[1750473961154,19.32964886,140.12,140.11,13.41352308]
[1750473961353,24.65265846,140.12,140.11,13.41352308]
[1750473961671,18.64964886,140.11,140.1,7.13775874]
[1750473961857,23.97265846,140.11,140.1,7.13775874]
[1750473962556,23.97265846,140.11,140.09,7.13826825]
[1750473962755,18.64964886,140.11,140.1,6.27627378]
[1750473962959,23.97178563,140.11,140.1,6.27627378]
[1750473964178,23.97178563,140.11,140.1,13.41403252]
[1750473964757,24.68178563,140.11,140.1,13.41403252]
[1750473965871,23.97178563,140.11,140.1,13.41403252]
[1750473967363,23.97178563,140.11,140.1,6.27627378]
[1750473967574,23.97178563,140.11,140.1,13.41403252]
[1750473967773,24.68178563,140.11,140.1,13.41403252]
[1750473971375,23.97178563,140.11,140.1,13.41403252]
[1750473972582,23.97183341,140.11,140.1,13.41403252]
[1750473973169,18.64964886,140.11,140.1,13.41403252]
[1750473974787,23.97330702,140.11,140.1,13.41403252]
[1750473975282,23.97330702,140.11,140.1,14.10403252]
[1750473975485,18.64964886,140.11,140.1,14.10403252]
[1750473981991,0.71,140.16,140.11,0.69]
[1750473982198,18.64964886,140.15,140.11,0.69]
[1750473982367,18.64964886,140.15,140.14,6.27627378]
[1750473982773,19.35964886,140.15,140.14,6.27627378]
[1750473983869,18.64964886,140.13,140.11,7.1372493]
[1750473984073,18.64964886,140.13,140.12,6.27627378]
[1750473985019,18.64964886,140.13,140.12,13.41301371]
[1750473987691,18.64964886,140.15,140.12,13.41301371]
[1750473987880,19.35964886,140.14,140.12,6.27627378]
[1750473988195,0.71,140.13,140.12,6.27627378]
[1750473991291,25.78538726,140.14,140.1,7.13765193]
[1750473991475,0.71,140.13,140.11,6.27627378]
[1750473991800,19.35964886,140.12,140.11,6.27627378]
[1750473992589,48.13964886,140.12,140.11,6.27627378]
[1750473995370,47.42964886,140.12,140.11,13.41352308]
[1750473997604,18.64964886,140.12,140.11,13.41352308]
[1750473997800,18.64964886,140.13,140.11,14.09352308]
[1750473997976,18.64964886,140.13,140.12,6.27627378]
[1750473998303,18.64964886,140.13,140.12,13.41301371]
[1750474000675,0.72,140.12,140.11,7.1372493]
[1750474000878,0.72,140.12,140.11,13.41352308]
[1750474001092,6.0468514,140.12,140.11,13.41352308]
[1750474001698,24.69681332,140.12,140.11,13.41352308]
[1750474002502,24.69674309,140.12,140.11,13.41352308]
[1750474002699,24.69674309,140.12,140.11,6.27627378]
[1750474003209,0.72,140.11,140.1,6.27627378]
[1750474003389,6.04709423,140.11,140.1,6.27627378]
[1750474004290,24.69674309,140.11,140.1,6.27627378]
[1750474004611,18.64964886,140.1,140.02,0.68]
[1750474004782,19.36964886,140.07,140.06,6.27627378]
[1750474004984,6.04470769,140.07,140.05,6.27627378]
[1750474005188,19.36964886,140.05,140.04,6.27627378]
[1750474005388,18.64964886,140.03,140.0,31.80509512]
[1750474005680,18.64964886,140.03,140.02,6.27627378]
[1750474005886,53.49273349,140.03,140.02,6.27627378]
[1750474006081,53.49273349,140.03,140.01,6.27627378]
[1750474008400,19.36964886,140.02,139.99,9.82474081]
[1750474008597,18.64964886,140.0,139.99,9.82474081]
[1750474008809,19.36964886,140.0,139.99,9.82474081]
[1750474009495,19.36964886,140.0,139.99,16.96810819]
[1750474010012,18.64964886,140.0,139.99,16.96810819]
[1750474012095,18.64964886,140.0,139.99,17.64810819]
[1750474012295,47.44964886,140.03,139.99,17.64810819]
[1750474012518,47.44964886,140.03,140.02,9.82474081]
[1750474012895,48.16964886,140.03,140.02,9.82474081]
[1750474013424,48.16964886,140.03,140.01,9.82474081]
[1750474014092,48.16964886,140.03,140.01,16.9670152]
[1750474019425,47.44964886,140.03,140.02,9.82474081]
[1750474020102,18.64964886,140.03,140.02,9.82474081]